[Event "*** Titled Tuesday Blitz"]
[Site "Chess.com"]
[Date "2020.02.04"]
[Round "2"]
[White "Carnivoras"]
[Black "Shtembuliak"]
[Result "1/2-1/2"]
[WhiteElo "2555"]
[BlackElo "2804"]
[TimeControl "180+2"]
[EndTime "13:29:57 PST"]
[Termination "Game drawn by 50-move rule"]

1. d4 {[%clk 0:03:01.9]} 1... g6 {[%clk 0:02:58]} 2. Nf3 {[%clk 0:03:02.8]} 2...
Bg7 {[%clk 0:02:58.5]} 3. e4 {[%clk 0:03:03.3]} 3... d6 {[%clk 0:02:58.4]} 4.
Bd3 {[%clk 0:03:04]} 4... Nf6 {[%clk 0:02:57.2]} 5. O-O {[%clk 0:03:04.4]} 5...
O-O {[%clk 0:02:58.2]} 6. Qe2 {[%clk 0:03:03.1]} 6... Nc6 {[%clk 0:02:53.2]} 7.
Bg5 {[%clk 0:03:00.8]} 7... Bg4 {[%clk 0:02:51.6]} 8. c3 {[%clk 0:02:59.4]} 8...
e5 {[%clk 0:02:51.5]} 9. d5 {[%clk 0:02:56.3]} 9... Ne7 {[%clk 0:02:51.4]} 10.
Nbd2 {[%clk 0:02:56.6]} 10... h6 {[%clk 0:02:51.9]} 11. Be3 {[%clk 0:02:50.5]}
11... Bd7 {[%clk 0:02:50.4]} 12. c4 {[%clk 0:02:43.8]} 12... Ng4 {[%clk
0:02:50.6]} 13. c5 {[%clk 0:02:44.8]} 13... Nxe3 {[%clk 0:02:51.4]} 14. Qxe3
{[%clk 0:02:44.6]} 14... f5 {[%clk 0:02:52.9]} 15. cxd6 {[%clk 0:02:41.1]} 15...
cxd6 {[%clk 0:02:53.2]} 16. Nc4 {[%clk 0:02:42.5]} 16... Rf6 {[%clk 0:02:47.9]}
17. Qd2 {[%clk 0:02:32.6]} 17... f4 {[%clk 0:02:47.1]} 18. Rfc1 {[%clk
0:02:27.8]} 18... g5 {[%clk 0:02:47.2]} 19. Na5 {[%clk 0:02:27.4]} 19... Rb8
{[%clk 0:02:45.2]} 20. Qb4 {[%clk 0:02:24.5]} 20... Ng6 {[%clk 0:02:02.8]} 21.
Nxb7 {[%clk 0:02:09.9]} 21... g4 {[%clk 0:01:54.4]} 22. Nxd8 {[%clk 0:01:54.6]}
22... Rxb4 {[%clk 0:01:54]} 23. Nd2 {[%clk 0:01:55.4]} 23... Rxb2 {[%clk
0:01:40.1]} 24. Nc4 {[%clk 0:01:40.8]} 24... Rb4 {[%clk 0:01:39.7]} 25. Rab1
{[%clk 0:01:37.7]} 25... Ra4 {[%clk 0:01:35.2]} 26. Rb7 {[%clk 0:01:29.2]} 26...
Nf8 {[%clk 0:01:28.2]} 27. a3 {[%clk 0:01:10.9]} 27... f3 {[%clk 0:01:28.8]} 28.
Ne6 {[%clk 0:00:50.9]} 28... Nxe6 {[%clk 0:01:23.8]} 29. Rxd7 {[%clk 0:00:22.9]}
29... Nc5 {[%clk 0:01:24.2]} 30. Rd8+ {[%clk 0:00:22.4]} 30... Rf8 {[%clk
0:01:25]} 31. Rxf8+ {[%clk 0:00:19.1]} 31... Bxf8 {[%clk 0:01:26.9]} 32. Bb1
{[%clk 0:00:19.8]} 32... Kf7 {[%clk 0:01:11]} 33. gxf3 {[%clk 0:00:19.8]} 33...
gxf3 {[%clk 0:01:11.2]} 34. Rc3 {[%clk 0:00:21.7]} 34... Ke7 {[%clk 0:01:10.9]}
35. Bc2 {[%clk 0:00:22]} 35... Ra6 {[%clk 0:01:09.7]} 36. Rxf3 {[%clk
0:00:22.8]} 36... Nd7 {[%clk 0:00:55.7]} 37. Kf1 {[%clk 0:00:23.2]} 37... Nb6
{[%clk 0:00:52]} 38. Nxb6 {[%clk 0:00:22.2]} 38... axb6 {[%clk 0:00:51]} 39. Rb3
{[%clk 0:00:23]} 39... h5 {[%clk 0:00:51.3]} 40. Bd3 {[%clk 0:00:23.9]} 40...
Ra7 {[%clk 0:00:50.1]} 41. Bb5 {[%clk 0:00:21.7]} 41... Bh6 {[%clk 0:00:44.7]}
42. a4 {[%clk 0:00:21.9]} 42... Bd2 {[%clk 0:00:44.3]} 43. Bc6 {[%clk
0:00:21.6]} 43... Ba5 {[%clk 0:00:44.7]} 44. Rh3 {[%clk 0:00:22.2]} 44... Kf6
{[%clk 0:00:44.3]} 45. Rxh5 {[%clk 0:00:23.2]} 45... Bb4 {[%clk 0:00:45.7]} 46.
Rh6+ {[%clk 0:00:24.1]} 46... Kg5 {[%clk 0:00:45.9]} 47. Rh3 {[%clk 0:00:24.3]}
47... Bc5 {[%clk 0:00:45.1]} 48. Kg2 {[%clk 0:00:25.1]} 48... Kf4 {[%clk
0:00:41.7]} 49. Rh4+ {[%clk 0:00:25.1]} 49... Kg5 {[%clk 0:00:42.9]} 50. Rh8
{[%clk 0:00:22.2]} 50... Kf4 {[%clk 0:00:41.6]} 51. Rh4+ {[%clk 0:00:20.3]}
51... Kg5 {[%clk 0:00:42.4]} 52. Rh3 {[%clk 0:00:20.8]} 52... Kg4 {[%clk
0:00:39]} 53. Rf3 {[%clk 0:00:17.6]} 53... Rh7 {[%clk 0:00:37.9]} 54. h3+ {[%clk
0:00:17.5]} 54... Kg5 {[%clk 0:00:38.3]} 55. Rf5+ {[%clk 0:00:18.3]} 55... Kg6
{[%clk 0:00:39.3]} 56. Kg3 {[%clk 0:00:17.9]} 56... Rh8 {[%clk 0:00:38.2]} 57.
f3 {[%clk 0:00:19]} 57... Bb4 {[%clk 0:00:37.1]} 58. h4 {[%clk 0:00:20]} 58...
Be1+ {[%clk 0:00:37.6]} 59. Kg2 {[%clk 0:00:18.1]} 59... Rxh4 {[%clk 0:00:37.9]}
60. Rf8 {[%clk 0:00:15.9]} 60... Bb4 {[%clk 0:00:35.1]} 61. Rb8 {[%clk
0:00:15.5]} 61... Bc5 {[%clk 0:00:35]} 62. Rg8+ {[%clk 0:00:16.3]} 62... Kf6
{[%clk 0:00:35]} 63. Rg4 {[%clk 0:00:18.2]} 63... Rh8 {[%clk 0:00:34.8]} 64. Rg3
{[%clk 0:00:19.2]} 64... Be3 {[%clk 0:00:33.8]} 65. Rh3 {[%clk 0:00:20.2]} 65...
Rg8+ {[%clk 0:00:33.9]} 66. Rg3 {[%clk 0:00:21.2]} 66... Rh8 {[%clk 0:00:34.5]}
67. Rh3 {[%clk 0:00:22.1]} 67... Rg8+ {[%clk 0:00:34.9]} 68. Rg3 {[%clk
0:00:23.3]} 68... Rf8 {[%clk 0:00:36.3]} 69. Kf1 {[%clk 0:00:23.7]} 69... Bf4
{[%clk 0:00:36.8]} 70. Rh3 {[%clk 0:00:21.9]} 70... Rg8 {[%clk 0:00:37.7]} 71.
Ke2 {[%clk 0:00:17.4]} 71... Rg2+ {[%clk 0:00:37.1]} 72. Kd3 {[%clk 0:00:18.3]}
72... Ra2 {[%clk 0:00:35.8]} 73. Bb5 {[%clk 0:00:18.5]} 73... Ra3+ {[%clk
0:00:34.6]} 74. Ke2 {[%clk 0:00:18.9]} 74... Re3+ {[%clk 0:00:33.4]} 75. Kf2
{[%clk 0:00:18.5]} 75... Ra3 {[%clk 0:00:34.7]} 76. Ke2 {[%clk 0:00:18.9]} 76...
Be3 {[%clk 0:00:35.6]} 77. Rh7 {[%clk 0:00:16.1]} 77... Bc5 {[%clk 0:00:35.1]}
78. Rh3 {[%clk 0:00:15]} 78... Kg5 {[%clk 0:00:34.7]} 79. Kd2 {[%clk 0:00:14.1]}
79... Kf4 {[%clk 0:00:32.9]} 80. Ke2 {[%clk 0:00:15]} 80... Re3+ {[%clk
0:00:32.1]} 81. Kd2 {[%clk 0:00:15.9]} 81... Bb4+ {[%clk 0:00:32.4]} 82. Kc2
{[%clk 0:00:16.7]} 82... Rc3+ {[%clk 0:00:32.5]} 83. Kb2 {[%clk 0:00:13.8]}
83... Re3 {[%clk 0:00:30.7]} 84. Kc2 {[%clk 0:00:14.3]} 84... Re1 {[%clk
0:00:26]} 85. Bd3 {[%clk 0:00:12.7]} 85... Ke3 {[%clk 0:00:25.3]} 86. Bb5 {[%clk
0:00:11.4]} 86... Kd4 {[%clk 0:00:22.2]} 87. Rh2 {[%clk 0:00:09.1]} 87... Re3
{[%clk 0:00:21]} 88. Rf2 {[%clk 0:00:08]} 88... Rc3+ {[%clk 0:00:21.2]} 89. Kb2
{[%clk 0:00:08.5]} 89... Ba3+ {[%clk 0:00:21.6]} 90. Ka2 {[%clk 0:00:09]} 90...
Bc1 {[%clk 0:00:22.2]} 91. Rf1 {[%clk 0:00:08.5]} 91... Bd2 {[%clk 0:00:21.5]}
92. Kb2 {[%clk 0:00:08.6]} 92... Rc7 {[%clk 0:00:18.6]} 93. Kb3 {[%clk
0:00:09.1]} 93... Ke3 {[%clk 0:00:18.4]} 94. Kb2 {[%clk 0:00:08.9]} 94... Rc5
{[%clk 0:00:18.5]} 95. Kb3 {[%clk 0:00:09.6]} 95... Rc7 {[%clk 0:00:15.4]} 96.
Kb2 {[%clk 0:00:10.2]} 96... Rh7 {[%clk 0:00:16]} 97. Kc2 {[%clk 0:00:10.2]}
97... Rh2 {[%clk 0:00:16]} 98. Kb3 {[%clk 0:00:11.1]} 98... Kd4 {[%clk
0:00:16.1]} 99. Rd1 {[%clk 0:00:08.2]} 99... Rf2 {[%clk 0:00:15.4]} 100. Rf1
{[%clk 0:00:09]} 100... Rg2 {[%clk 0:00:16.3]} 101. Rd1 {[%clk 0:00:09.7]}
101... Ke3 {[%clk 0:00:17.4]} 102. Rf1 {[%clk 0:00:10.5]} 102... Rg7 {[%clk
0:00:14]} 103. Kc2 {[%clk 0:00:11]} 103... Rc7+ {[%clk 0:00:13.6]} 104. Kb3
{[%clk 0:00:11.7]} 104... Kf4 {[%clk 0:00:13.9]} 105. Rd1 {[%clk 0:00:10.9]}
105... Be3 {[%clk 0:00:14.8]} 106. Rf1 {[%clk 0:00:11.3]} 106... Kg3 {[%clk
0:00:15.9]} 107. Kb2 {[%clk 0:00:10.4]} 107... Bf2 {[%clk 0:00:16.8]} 108. Be2
{[%clk 0:00:09.8]} 108... Bd4+ {[%clk 0:00:17.2]} 109. Kb1 {[%clk 0:00:08]}
109... Rc3 {[%clk 0:00:17.7]} 1/2-1/2

[Event "*** Titled Tuesday Blitz"]
[Site "Chess.com"]
[Date "2020.02.04"]
[Round "2"]
[White "GMWSO"]
[Black "Rodalquilar"]
[Result "1/2-1/2"]
[WhiteElo "3078"]
[BlackElo "2661"]
[TimeControl "180+2"]
[EndTime "13:30:04 PST"]
[Termination "Game drawn by stalemate"]

1. d4 {[%clk 0:03:01.9]} 1... d5 {[%clk 0:02:58.5]} 2. Nf3 {[%clk 0:03:01.7]}
2... Nf6 {[%clk 0:02:59.6]} 3. Bf4 {[%clk 0:03:03.3]} 3... e6 {[%clk 0:03:00.9]}
4. e3 {[%clk 0:03:04.5]} 4... Bd6 {[%clk 0:03:02.3]} 5. Nbd2 {[%clk 0:03:04.9]}
5... O-O {[%clk 0:03:02.7]} 6. Bd3 {[%clk 0:03:04.4]} 6... b6 {[%clk 0:03:02.9]}
7. Qe2 {[%clk 0:03:04.1]} 7... Bb7 {[%clk 0:03:04]} 8. Ne5 {[%clk 0:02:58.1]}
8... Ne4 {[%clk 0:02:52.3]} 9. Nxe4 {[%clk 0:02:44.8]} 9... dxe4 {[%clk
0:02:53.5]} 10. Bc4 {[%clk 0:02:45.3]} 10... Qe7 {[%clk 0:02:25.2]} 11. Qg4
{[%clk 0:02:44.7]} 11... Kh8 {[%clk 0:02:10.2]} 12. O-O-O {[%clk 0:02:32.1]}
12... Bd5 {[%clk 0:01:45.1]} 13. Bxd5 {[%clk 0:02:26.5]} 13... exd5 {[%clk
0:01:47]} 14. Qh5 {[%clk 0:02:26.5]} 14... Kg8 {[%clk 0:01:37]} 15. h4 {[%clk
0:02:21.4]} 15... c6 {[%clk 0:01:03]} 16. Rh3 {[%clk 0:02:19.8]} 16... Bxe5
{[%clk 0:00:38.1]} 17. dxe5 {[%clk 0:02:21.7]} 17... Qe6 {[%clk 0:00:34.2]} 18.
Rg3 {[%clk 0:02:20]} 18... Re8 {[%clk 0:00:30.5]} 19. Bh6 {[%clk 0:01:36.6]}
19... g6 {[%clk 0:00:29.2]} 20. Bf4 {[%clk 0:01:38.1]} 20... Nd7 {[%clk
0:00:29.2]} 21. Qh6 {[%clk 0:01:38]} 21... Nxe5 {[%clk 0:00:27.7]} 22. h5 {[%clk
0:01:39.6]} 22... Ng4 {[%clk 0:00:26.3]} 23. Qg5 {[%clk 0:01:37.5]} 23... Nf6
{[%clk 0:00:16.6]} 24. Rh1 {[%clk 0:01:33.9]} 24... Re7 {[%clk 0:00:13.9]} 25.
Qh4 {[%clk 0:01:27.3]} 25... Rd8 {[%clk 0:00:11.3]} 26. hxg6 {[%clk 0:01:20.3]}
26... fxg6 {[%clk 0:00:12.2]} 27. Rxg6+ {[%clk 0:01:22.2]} 27... hxg6 {[%clk
0:00:12.3]} 28. Qh8+ {[%clk 0:01:24.1]} 28... Kf7 {[%clk 0:00:13.9]} 29. Qxd8
{[%clk 0:01:26]} 29... Qd7 {[%clk 0:00:14.2]} 30. Qb8 {[%clk 0:01:21.3]} 30...
Qg4 {[%clk 0:00:14.8]} 31. Bg3 {[%clk 0:01:09.9]} 31... Qf5 {[%clk 0:00:15.3]}
32. Bd6 {[%clk 0:01:08.4]} 32... Rd7 {[%clk 0:00:16.1]} 33. Qf8+ {[%clk
0:01:03.6]} 33... Ke6 {[%clk 0:00:17.2]} 34. Bg3 {[%clk 0:01:05.2]} 34... Nh5
{[%clk 0:00:18.1]} 35. Qe8+ {[%clk 0:01:05.3]} 35... Re7 {[%clk 0:00:19.4]} 36.
Qxc6+ {[%clk 0:01:06.4]} 36... Kf7 {[%clk 0:00:19.4]} 37. Bh4 {[%clk 0:01:06.8]}
37... Rd7 {[%clk 0:00:18.8]} 38. f3 {[%clk 0:01:04]} 38... Qe6 {[%clk
0:00:15.9]} 39. Qc3 {[%clk 0:01:00]} 39... Ng7 {[%clk 0:00:15.9]} 40. fxe4
{[%clk 0:00:58.5]} 40... dxe4 {[%clk 0:00:17.8]} 41. Rf1+ {[%clk 0:00:59.3]}
41... Kg8 {[%clk 0:00:19.4]} 42. Qc8+ {[%clk 0:00:56]} 42... Kh7 {[%clk
0:00:20.6]} 43. Rf8 {[%clk 0:00:55.8]} 43... g5 {[%clk 0:00:17.4]} 44. Bxg5
{[%clk 0:00:54]} 44... Qg4 {[%clk 0:00:16]} 45. b3 {[%clk 0:00:50.9]} 45... Rd1+
{[%clk 0:00:15.9]} 46. Kb2 {[%clk 0:00:52.4]} 46... Qxg5 {[%clk 0:00:17.4]} 47.
Rh8+ {[%clk 0:00:51]} 47... Kg6 {[%clk 0:00:18.8]} 48. Qc6+ {[%clk 0:00:52.9]}
48... Qf6+ {[%clk 0:00:20.1]} 49. Qxf6+ {[%clk 0:00:54]} 49... Kxf6 {[%clk
0:00:22]} 50. Rh4 {[%clk 0:00:55.3]} 50... Rd2 {[%clk 0:00:21.7]} 51. Rxe4
{[%clk 0:00:55.7]} 51... Rxg2 {[%clk 0:00:22.9]} 52. Rc4 {[%clk 0:00:54.3]}
52... Nf5 {[%clk 0:00:24.1]} 53. e4 {[%clk 0:00:51.4]} 53... Ne3 {[%clk
0:00:24.7]} 54. Rc7 {[%clk 0:00:53]} 54... a5 {[%clk 0:00:25]} 55. Rc6+ {[%clk
0:00:48.9]} 55... Ke5 {[%clk 0:00:26.5]} 56. Rxb6 {[%clk 0:00:50.8]} 56... Rxc2+
{[%clk 0:00:25.5]} 57. Ka3 {[%clk 0:00:51.5]} 57... Nd1 {[%clk 0:00:25.8]} 58.
Rb5+ {[%clk 0:00:50.9]} 58... Kxe4 {[%clk 0:00:24.9]} 59. Rxa5 {[%clk
0:00:52.7]} 59... Nc3 {[%clk 0:00:25.2]} 60. b4 {[%clk 0:00:51.6]} 60... Kd3
{[%clk 0:00:20.7]} 61. Kb3 {[%clk 0:00:51.4]} 61... Rc1 {[%clk 0:00:21.9]} 62.
Rc5 {[%clk 0:00:50.2]} 62... Rb1+ {[%clk 0:00:23.2]} 63. Ka3 {[%clk 0:00:51.6]}
63... Ne4 {[%clk 0:00:24.3]} 64. Rc8 {[%clk 0:00:48.8]} 64... Nc3 {[%clk
0:00:14.6]} 65. Rd8+ {[%clk 0:00:46.4]} 65... Kc2 {[%clk 0:00:15.8]} 66. Rc8
{[%clk 0:00:48.3]} 66... Rb2 {[%clk 0:00:15.3]} 67. b5 {[%clk 0:00:45]} 67...
Rxb5 {[%clk 0:00:10.5]} 68. Rc7 {[%clk 0:00:40.1]} 68... Kd3 {[%clk 0:00:10.3]}
69. Rd7+ {[%clk 0:00:39.5]} 69... Ke3 {[%clk 0:00:11.8]} 70. Re7+ {[%clk
0:00:39.9]} 70... Kd4 {[%clk 0:00:13]} 71. Rd7+ {[%clk 0:00:41.2]} 71... Ke5
{[%clk 0:00:13.8]} 72. Rc7 {[%clk 0:00:41.5]} 72... Nd5 {[%clk 0:00:14.8]} 73.
Rc8 {[%clk 0:00:41.8]} 73... Rb1 {[%clk 0:00:14.3]} 74. Re8+ {[%clk 0:00:39.6]}
74... Kd4 {[%clk 0:00:15.7]} 75. Rd8 {[%clk 0:00:40.7]} 75... Kc5 {[%clk
0:00:15.7]} 76. Rc8+ {[%clk 0:00:41.7]} 76... Kb5 {[%clk 0:00:15.2]} 77. Rb8+
{[%clk 0:00:42.2]} 77... Nb6 {[%clk 0:00:16.7]} 78. Rb7 {[%clk 0:00:37.2]} 78...
Ka6 {[%clk 0:00:15.8]} 79. Rc7 {[%clk 0:00:37.9]} 79... Ka5 {[%clk 0:00:10.8]}
80. Rc5+ {[%clk 0:00:37.8]} 80... Ka6 {[%clk 0:00:10.5]} 81. Ra5+ {[%clk
0:00:39.7]} 81... Kb7 {[%clk 0:00:09.3]} 82. Ra7+ {[%clk 0:00:41.6]} 82... Kc6
{[%clk 0:00:09.8]} 83. Rc7+ {[%clk 0:00:42.5]} 83... Kd6 {[%clk 0:00:11.3]} 84.
Rc6+ {[%clk 0:00:42.6]} 84... Kd5 {[%clk 0:00:11.1]} 85. Rc5+ {[%clk 0:00:43.6]}
85... Kd4 {[%clk 0:00:12.6]} 86. Rc7 {[%clk 0:00:37.4]} 86... Nc4+ {[%clk
0:00:12.4]} 87. Ka4 {[%clk 0:00:38.6]} 87... Kc3 {[%clk 0:00:14]} 88. a3 {[%clk
0:00:37.1]} 88... Rb3 {[%clk 0:00:10.4]} 89. Rc8 {[%clk 0:00:32.3]} 89... Rb2
{[%clk 0:00:08.8]} 90. Rb8 {[%clk 0:00:30.5]} 90... Rg2 {[%clk 0:00:06.6]} 91.
Rb3+ {[%clk 0:00:30.6]} 91... Kd4 {[%clk 0:00:07.4]} 92. Rb8 {[%clk 0:00:32]}
92... Rg4 {[%clk 0:00:05.9]} 93. Kb4 {[%clk 0:00:32.3]} 93... Nd6 {[%clk
0:00:04.8]} 94. Ka5 {[%clk 0:00:30.7]} 94... Kd5 {[%clk 0:00:06.2]} 95. a4
{[%clk 0:00:30.5]} 95... Kc6 {[%clk 0:00:07.6]} 96. Rb6+ {[%clk 0:00:27.8]}
96... Kc7 {[%clk 0:00:08.3]} 97. Rb1 {[%clk 0:00:28.2]} 97... Rc4 {[%clk
0:00:08.3]} 98. Rb4 {[%clk 0:00:26.8]} 98... Rc5+ {[%clk 0:00:07]} 99. Ka6
{[%clk 0:00:28]} 99... Kc6 {[%clk 0:00:08.1]} 100. Rb6+ {[%clk 0:00:27.8]}
100... Kd5 {[%clk 0:00:09.6]} 101. a5 {[%clk 0:00:28.6]} 101... Rc8 {[%clk
0:00:08]} 102. Ka7 {[%clk 0:00:28]} 102... Kc5 {[%clk 0:00:08.3]} 103. a6 {[%clk
0:00:17.8]} 103... Rc7+ {[%clk 0:00:07]} 104. Rb7 {[%clk 0:00:18.6]} 104... Nxb7
{[%clk 0:00:06.4]} 105. axb7 {[%clk 0:00:20.5]} 105... Kc6 {[%clk 0:00:05.6]}
106. Ka8 {[%clk 0:00:21.9]} 106... Rxb7 {[%clk 0:00:07.1]} 1/2-1/2

[Event "*** Titled Tuesday Blitz"]
[Site "Chess.com"]
[Date "2020.02.04"]
[Round "3"]
[White "Siemba"]
[Black "PowerThinking2650"]
[Result "0-1"]
[WhiteElo "2186"]
[BlackElo "2384"]
[TimeControl "180+2"]
[EndTime "13:33:25 PST"]
[Termination "PowerThinking2650 won by resignation"]

1. e4 {[%clk 0:03:01.9]} 1... e5 {[%clk 0:03:00.4]} 2. Qh5 {[%clk 0:03:03.1]}
2... Nc6 {[%clk 0:02:59.8]} 3. Bc4 {[%clk 0:03:03.2]} 3... g6 {[%clk 0:02:59.3]}
4. Qf3 {[%clk 0:03:04]} 4... Nf6 {[%clk 0:02:59.4]} 5. Qb3 {[%clk 0:03:01.2]}
5... Nd4 {[%clk 0:02:33.3]} 6. Qd3 {[%clk 0:02:52.5]} 6... d5 {[%clk 0:02:30.9]}
7. exd5 {[%clk 0:02:48.3]} 7... Bf5 {[%clk 0:02:29.3]} 8. Bb5+ {[%clk
0:02:31.3]} 8... c6 {[%clk 0:02:26.1]} 9. dxc6 {[%clk 0:02:28.5]} 9... Bxd3
{[%clk 0:01:55.5]} 10. c7+ {[%clk 0:02:29.1]} 10... Bxb5 {[%clk 0:01:54.6]} 11.
cxd8=Q+ {[%clk 0:02:30.3]} 11... Rxd8 {[%clk 0:01:54.4]} 12. Kd1 {[%clk
0:02:30.5]} 12... Ne4 {[%clk 0:01:44.2]} 13. Nh3 {[%clk 0:02:30.7]} 13... Be2+
{[%clk 0:01:40.9]} 14. Ke1 {[%clk 0:02:26.3]} 14... Bg4 {[%clk 0:01:41.8]} 0-1

[Event "*** Titled Tuesday Blitz"]
[Site "Chess.com"]
[Date "2020.02.04"]
[Round "3"]
[White "Korchmar_Vasiliy"]
[Black "Majkelopulos"]
[Result "1-0"]
[WhiteElo "2787"]
[BlackElo "2487"]
[TimeControl "180+2"]
[EndTime "13:33:42 PST"]
[Termination "Korchmar_Vasiliy won by resignation"]

1. d4 {[%clk 0:03:01.9]} 1... Nf6 {[%clk 0:03:00.6]} 2. c4 {[%clk 0:03:03]} 2...
c5 {[%clk 0:03:02]} 3. d5 {[%clk 0:03:03.9]} 3... e6 {[%clk 0:03:03.5]} 4. Nc3
{[%clk 0:03:04.8]} 4... exd5 {[%clk 0:03:05.1]} 5. cxd5 {[%clk 0:03:06.7]} 5...
d6 {[%clk 0:03:06.6]} 6. Nf3 {[%clk 0:03:08.4]} 6... g6 {[%clk 0:03:08.2]} 7. g3
{[%clk 0:03:10.1]} 7... Bg7 {[%clk 0:03:09.6]} 8. Bg2 {[%clk 0:03:12]} 8... O-O
{[%clk 0:03:10.6]} 9. O-O {[%clk 0:03:13.9]} 9... Re8 {[%clk 0:02:59.6]} 10. Bf4
{[%clk 0:03:14.2]} 10... Ne4 {[%clk 0:02:56.1]} 11. Nxe4 {[%clk 0:03:14.6]}
11... Rxe4 {[%clk 0:02:58]} 12. Nd2 {[%clk 0:03:16.2]} 12... Rxf4 {[%clk
0:02:57.8]} 13. gxf4 {[%clk 0:03:18.1]} 13... Bxb2 {[%clk 0:02:57.9]} 14. Rb1
{[%clk 0:03:19.7]} 14... Bg7 {[%clk 0:02:56.2]} 15. e4 {[%clk 0:03:21.6]} 15...
a6 {[%clk 0:02:48.8]} 16. Re1 {[%clk 0:03:21.9]} 16... b5 {[%clk 0:02:46]} 17.
e5 {[%clk 0:03:22.4]} 17... Bf5 {[%clk 0:02:41.1]} 18. Be4 {[%clk 0:03:16.6]}
18... dxe5 {[%clk 0:02:35.1]} 19. fxe5 {[%clk 0:02:45.3]} 19... Qg5+ {[%clk
0:02:28.2]} 20. Kh1 {[%clk 0:02:45.9]} 20... Bxe5 {[%clk 0:02:25.7]} 21. Nf3
{[%clk 0:02:41.4]} 21... Qf4 {[%clk 0:01:38.4]} 22. Bxf5 {[%clk 0:02:41.4]}
22... Bc3 {[%clk 0:01:39.2]} 1-0

[Event "*** Titled Tuesday Blitz"]
[Site "Chess.com"]
[Date "2020.02.04"]
[Round "3"]
[White "Aygehovit1992"]
[Black "Raspadsistema"]
[Result "1-0"]
[WhiteElo "2657"]
[BlackElo "2798"]
[TimeControl "180+2"]
[EndTime "13:34:16 PST"]
[Termination "Aygehovit1992 won by resignation"]

1. e4 {[%clk 0:03:01.9]} 1... d6 {[%clk 0:03:01.5]} 2. d4 {[%clk 0:03:01.5]}
2... Nf6 {[%clk 0:03:03.1]} 3. Nc3 {[%clk 0:03:03.1]} 3... e5 {[%clk 0:03:04.7]}
4. Nf3 {[%clk 0:03:03.2]} 4... Nbd7 {[%clk 0:03:05.8]} 5. g4 {[%clk 0:03:03.6]}
5... Nxg4 {[%clk 0:03:06.7]} 6. Rg1 {[%clk 0:03:04.6]} 6... Ngf6 {[%clk
0:03:08]} 7. Be3 {[%clk 0:03:01.2]} 7... g6 {[%clk 0:02:59.6]} 8. Bc4 {[%clk
0:03:01.4]} 8... Bg7 {[%clk 0:03:01]} 9. Qd2 {[%clk 0:02:57.4]} 9... O-O {[%clk
0:02:57]} 10. Bh6 {[%clk 0:02:57.2]} 10... Qe7 {[%clk 0:02:49.4]} 11. O-O-O
{[%clk 0:02:49.2]} 11... c6 {[%clk 0:02:23.4]} 12. Nh4 {[%clk 0:02:30.6]} 12...
Nb6 {[%clk 0:01:35.6]} 13. Nxg6 {[%clk 0:02:31.1]} 13... hxg6 {[%clk 0:01:36.5]}
14. Rxg6 {[%clk 0:02:31.9]} 14... Nxc4 {[%clk 0:01:38.2]} 15. Rxg7+ {[%clk
0:02:33]} 15... Kh8 {[%clk 0:01:39.7]} 16. Qg5 {[%clk 0:02:29.9]} 1-0

[Event "*** Titled Tuesday Blitz"]
[Site "Chess.com"]
[Date "2020.02.04"]
[Round "3"]
[White "SanchezKelvin"]
[Black "olksuna"]
[Result "0-1"]
[WhiteElo "2347"]
[BlackElo "2578"]
[TimeControl "180+2"]
[EndTime "13:35:02 PST"]
[Termination "olksuna won by resignation"]

1. d4 {[%clk 0:03:01.9]} 1... Nf6 {[%clk 0:03:00.8]} 2. c4 {[%clk 0:03:02.6]}
2... e6 {[%clk 0:03:02]} 3. Nf3 {[%clk 0:03:00.3]} 3... d5 {[%clk 0:03:02.2]} 4.
Nc3 {[%clk 0:03:00.5]} 4... dxc4 {[%clk 0:03:00.9]} 5. e3 {[%clk 0:02:56.6]}
5... a6 {[%clk 0:03:01.7]} 6. Bxc4 {[%clk 0:02:56.5]} 6... b5 {[%clk 0:03:02.1]}
7. Be2 {[%clk 0:02:57.7]} 7... Bb7 {[%clk 0:03:02.8]} 8. O-O {[%clk 0:02:58.4]}
8... Nbd7 {[%clk 0:03:03.5]} 9. b3 {[%clk 0:02:58.1]} 9... c5 {[%clk 0:03:03.9]}
10. Bb2 {[%clk 0:02:58.8]} 10... Rc8 {[%clk 0:03:03.4]} 11. Rc1 {[%clk 0:02:59]}
11... Be7 {[%clk 0:03:00]} 12. a4 {[%clk 0:02:59.2]} 12... b4 {[%clk 0:02:58.6]}
13. Nb1 {[%clk 0:02:54.1]} 13... O-O {[%clk 0:02:59.3]} 14. Nbd2 {[%clk
0:02:54.7]} 14... Nd5 {[%clk 0:02:58.7]} 15. Nc4 {[%clk 0:02:52]} 15... cxd4
{[%clk 0:02:59.9]} 16. Qxd4 {[%clk 0:02:46.7]} 16... Bf6 {[%clk 0:02:56.4]} 17.
Qa7 {[%clk 0:02:47.4]} 17... Bxb2 {[%clk 0:02:51.6]} 18. Nxb2 {[%clk 0:02:47.9]}
18... Nc3 {[%clk 0:02:48.3]} 19. Bxa6 {[%clk 0:02:05.5]} 19... Bxa6 {[%clk
0:02:44.8]} 20. Qxa6 {[%clk 0:02:06.4]} 20... Nc5 {[%clk 0:02:44.9]} 21. Qc4
{[%clk 0:01:54.8]} 21... N5xa4 {[%clk 0:02:24.3]} 22. Qxb4 {[%clk 0:01:38.8]}
22... Ne2+ {[%clk 0:02:24.4]} 23. Kh1 {[%clk 0:01:39.6]} 23... Rxc1 {[%clk
0:02:14.2]} 24. Rxc1 {[%clk 0:01:36.2]} 24... Nxb2 {[%clk 0:02:10.4]} 25. Rb1
{[%clk 0:01:30.7]} 25... Nd3 {[%clk 0:02:02.6]} 0-1

[Event "*** Titled Tuesday Blitz"]
[Site "Chess.com"]
[Date "2020.02.04"]
[Round "3"]
[White "ChessLover0108"]
[Black "FairChess_on_YouTube"]
[Result "0-1"]
[WhiteElo "2724"]
[BlackElo "3027"]
[TimeControl "180+2"]
[EndTime "13:35:10 PST"]
[Termination "FairChess_on_YouTube won by resignation"]

1. d4 {[%clk 0:02:58.3]} 1... d5 {[%clk 0:02:57.6]} 2. c4 {[%clk 0:02:59.5]}
2... dxc4 {[%clk 0:02:58.7]} 3. Nf3 {[%clk 0:02:58.3]} 3... a6 {[%clk
0:02:54.8]} 4. e3 {[%clk 0:02:54.2]} 4... Bg4 {[%clk 0:02:55.4]} 5. Bxc4 {[%clk
0:02:53]} 5... e6 {[%clk 0:02:56.8]} 6. O-O {[%clk 0:02:51.3]} 6... Nc6 {[%clk
0:02:57.6]} 7. Nc3 {[%clk 0:02:49.7]} 7... Nf6 {[%clk 0:02:57.2]} 8. Be2 {[%clk
0:02:46.8]} 8... Bd6 {[%clk 0:02:56.8]} 9. h3 {[%clk 0:02:43.8]} 9... Bh5 {[%clk
0:02:57.8]} 10. b3 {[%clk 0:02:39.9]} 10... O-O {[%clk 0:02:46.1]} 11. Bb2
{[%clk 0:02:40.9]} 11... Qe7 {[%clk 0:02:46.8]} 12. Nd2 {[%clk 0:02:21.6]} 12...
Bxe2 {[%clk 0:02:47.4]} 13. Qxe2 {[%clk 0:02:23.5]} 13... e5 {[%clk 0:02:47.1]}
14. d5 {[%clk 0:02:18.8]} 14... Nb4 {[%clk 0:02:48]} 15. e4 {[%clk 0:02:18.1]}
15... Nc2 {[%clk 0:02:48.9]} 16. Rac1 {[%clk 0:02:16.9]} 16... Nd4 {[%clk
0:02:50.4]} 17. Qd3 {[%clk 0:02:17.2]} 17... Nh5 {[%clk 0:02:50.6]} 18. Ne2
{[%clk 0:02:09.2]} 18... Nxe2+ {[%clk 0:02:49.3]} 19. Qxe2 {[%clk 0:02:11.1]}
19... Nf4 {[%clk 0:02:50.6]} 20. Qf3 {[%clk 0:02:12.7]} 20... f5 {[%clk
0:02:47.9]} 21. Nc4 {[%clk 0:02:05.5]} 21... Rf6 {[%clk 0:02:40.9]} 22. Rfe1
{[%clk 0:01:56.3]} 22... Rg6 {[%clk 0:02:36.4]} 23. Ne3 {[%clk 0:01:45]} 23...
fxe4 {[%clk 0:02:33.5]} 24. Qxe4 {[%clk 0:01:46.5]} 24... Nxh3+ {[%clk
0:02:33.9]} 25. Kf1 {[%clk 0:01:48.1]} 25... Ng5 {[%clk 0:02:25]} 26. Nf5 {[%clk
0:01:47.7]} 26... Qf7 {[%clk 0:02:21.2]} 27. Qc2 {[%clk 0:01:20.2]} 27... Rf8
{[%clk 0:02:21.7]} 28. Ne3 {[%clk 0:01:17.7]} 28... Ne4 {[%clk 0:02:19.5]} 29.
f3 {[%clk 0:01:19.3]} 29... Ng3+ {[%clk 0:02:15.9]} 30. Kg1 {[%clk 0:01:20.9]}
30... e4 {[%clk 0:02:10.5]} 0-1